fUST/lending_fUST_20260505
["ID","MTS","AMOUNT","RATE_DAILY","PERIOD"]
[421612639,1777959033000,-174.03588265,0.00011553,2]
[421612643,1777959033000,-649.0,0.00011553,2]
[421612641,1777959033000,-649.0,0.00011553,2]
[421612651,1777959033000,-649.0,0.00011553,2]
[421612650,1777959033000,-649.0,0.00011553,2]
[421612645,1777959033000,-649.0,0.00011553,2]
[421612654,1777959033000,-360.00162894,0.00011553,2]
[421612649,1777959033000,-649.0,0.00011553,2]
[421612648,1777959033000,-649.0,0.00011553,2]
[421612647,1777959033000,-341.0,0.00011553,2]
[421612646,1777959033000,-649.0,0.00011553,2]
[421612652,1777959033000,-649.0,0.00011553,2]
[421612725,1777959043000,-356.77299193,0.00010791,2]
[421612742,1777959046000,-430.40198039,0.00011553,2]
[421612745,1777959046000,-649.0,0.00011553,2]
[421612741,1777959046000,-218.59801961,0.00011553,2]
[421612744,1777959046000,-649.0,0.00011553,2]
[421612743,1777959046000,-649.0,0.00011553,2]
[421612746,1777959046000,-360.95550805,0.00011553,2]
[421612739,1777959046000,-334.19070335,0.00011553,2]
[421612740,1777959046000,-314.80929665,0.00011553,2]
[421612738,1777959046000,-12.63575259,0.00011553,2]
[421612733,1777959046000,-288.99837106,0.00011553,2]
[421612734,1777959046000,-636.36424741,0.00011553,2]
[421612732,1777959046000,-332.5092616,0.00010791,2]
[421612747,1777959197000,1771.13,0.00020822,120]
[421612749,1777959911000,-1200.0,8.5e-05,7]
[421612750,1777959987000,1025.9628,0.00020822,120]
[421612755,1777960040000,16866.0,0.00020821,120]
[421612831,1777960232000,-748.41541433,8.5e-05,7]
[421612835,1777960232000,-3979.66741433,8.531e-05,2]
[421612837,1777960232000,-300.0,8.617e-05,2]
[421612833,1777960232000,-1020.33258567,8.531e-05,2]
[421612845,1777960232000,-300.0,8.617e-05,2]
[421612824,1777960232000,-464.0260702,8.5e-05,7]
[421612843,1777960232000,-1200.0,8.617e-05,2]
[421612847,1777960232000,-371.05110717,8.705e-05,2]
[421612841,1777960232000,-300.0,8.617e-05,2]
[421612849,1777960232000,-33726.7814785,9.088e-05,2]
[421612851,1777960232000,-415.50854083,9.088e-05,2]
[421612839,1777960232000,-300.0,8.617e-05,2]
[421612980,1777960240000,-187.851,9.789e-05,2]
[421612982,1777960240000,-437.84030646,0.00010705,2]
[421612984,1777960240000,-151.0,0.00011,2]
[421612983,1777960240000,-500.0,0.00011,2]
[421612986,1777960240000,-427.0052478,0.00011018,2]
[421612985,1777960240000,-151.0,0.00011,2]
[421612992,1777960240000,-537.6845,0.00011114,2]
[421612991,1777960240000,-151.0,0.000111,2]
[421612988,1777960240000,-456.2418086,0.00011018,2]
[421612990,1777960240000,-151.0,0.000111,2]
[421612989,1777960240000,-455.5382088,0.00011018,2]
[421612987,1777960240000,-151.6383496,0.00011018,2]
[421612975,1777960240000,-300.0,9.088e-05,2]
[421612981,1777960240000,-720.0,0.00010196,2]
[421612976,1777960240000,-300.0,9.088e-05,2]
[421612977,1777960240000,-547.0,9.088e-05,2]
[421612974,1777960240000,-300.0,9.088e-05,2]
[421612961,1777960240000,-3373.56717369,9.088e-05,2]
[421612964,1777960240000,-300.0,9.088e-05,2]
[421612965,1777960240000,-300.0,9.088e-05,2]
[421612962,1777960240000,-300.0,9.088e-05,2]
[421612963,1777960240000,-300.0,9.088e-05,2]
[421612967,1777960240000,-300.0,9.088e-05,2]
[421612971,1777960240000,-300.0,9.088e-05,2]
[421612978,1777960240000,-600.0,9.269e-05,2]
[421612966,1777960240000,-300.0,9.088e-05,2]
[421612969,1777960240000,-300.0,9.088e-05,2]
[421612968,1777960240000,-300.0,9.088e-05,2]
[421612973,1777960240000,-300.0,9.088e-05,2]
[421612970,1777960240000,-300.0,9.088e-05,2]
[421612972,1777960240000,-300.0,9.088e-05,2]
[421612994,1777960240000,-557.5788265,0.00011169,2]
[421612993,1777960240000,-2046.1834619,0.00011114,2]
[421612979,1777960240000,-638.493,9.789e-05,2]
[421613008,1777960240000,-199.57468251,0.00011336,2]
[421613020,1777960240000,-162.380719,0.0001143,2]
[421613024,1777960240000,-151.37121482,0.0001143,2]
[421613023,1777960240000,-537.6845,0.0001143,2]
[421613025,1777960240000,-500.0,0.00011435,2]
[421613022,1777960240000,-445.202766,0.0001143,2]
[421613026,1777960240000,-500.0,0.00011435,2]
[421613018,1777960240000,-151.0,0.000114,2]
[421613028,1777960240000,-500.0,0.00011435,2]
[421613030,1777960240000,-500.0,0.00011435,2]
[421613027,1777960240000,-286.02495502,0.00011435,2]
[421613031,1777960240000,-500.0,0.00011435,2]
[421613034,1777960240000,-500.0,0.00011435,2]
[421613033,1777960240000,-500.0,0.00011435,2]
[421613002,1777960240000,-599.60298507,0.00011279,2]
[421613029,1777960240000,-500.0,0.00011435,2]
[421613017,1777960240000,-151.0,0.000114,2]
[421613032,1777960240000,-500.0,0.00011435,2]
[421613015,1777960240000,-151.0,0.000114,2]
[421613014,1777960240000,-151.0,0.000114,2]
[421612997,1777960240000,-864.0,0.00011215,2]
[421613009,1777960240000,-199.57468249,0.0001134,2]
[421612998,1777960240000,-578.20924308,0.00011224,2]
[421613005,1777960240000,-151.0,0.000113,2]
[421613006,1777960240000,-621.78829552,0.00011334,2]
[421613007,1777960240000,-500.0,0.00011336,2]
[421613003,1777960240000,-151.0,0.000113,2]
[421613000,1777960240000,-1722.33328764,0.0001125,2]
[421612996,1777960240000,-151.0,0.000112,2]
[421613010,1777960240000,-199.57468249,0.00011345,2]
[421613011,1777960240000,-199.57468249,0.00011349,2]
[421613013,1777960240000,-644.79446246,0.00011389,2]
[421613012,1777960240000,-199.57468249,0.00011353,2]
[421612995,1777960240000,-151.0,0.000112,2]
[421613083,1777960241000,-175.385248,0.00011437,2]
[421613077,1777960241000,-500.0,0.00011436,2]
[421613078,1777960241000,-500.0,0.00011436,2]
[421613075,1777960241000,-500.0,0.00011436,2]
[421613076,1777960241000,-504.29590731,0.00011436,2]
[421613073,1777960241000,-500.0,0.00011436,2]
[421613071,1777960241000,-500.0,0.00011436,2]
[421613079,1777960241000,-500.0,0.00011436,2]
[421613080,1777960241000,-500.0,0.00011436,2]
[421613081,1777960241000,-165062.65281042,0.00011437,2]
[421613086,1777960241000,-693.3919763,0.00011499,2]
[421613070,1777960241000,-577.56558186,0.00011436,2]
[421613074,1777960241000,-500.0,0.00011436,2]
[421613072,1777960241000,-500.0,0.00011436,2]
[421613087,1777960241000,-151.0,0.000115,2]
[421613093,1777960241000,-745.65223616,0.00011609,2]
[421613096,1777960241000,-801.85129955,0.00011719,2]
[421613069,1777960241000,-500.0,0.00011436,2]
[421613099,1777960241000,-2214.0,0.00011773,2]
[421613100,1777960241000,-1411.0,0.00011773,2]
[421613098,1777960241000,-7748.80215721,0.0001176,2]
[421613097,1777960241000,-2503.25139915,0.00011727,2]
[421613082,1777960241000,-61001.35719545,0.00011437,2]
[421613094,1777960241000,-773.2413689,0.00011664,2]
[421613089,1777960241000,-160.0,0.00011556,2]
[421613088,1777960241000,-719.04747942,0.00011554,2]
[421613092,1777960241000,-623.3439631,0.0001156,2]
[421613090,1777960241000,-160.0,0.00011556,2]
[421613085,1777960241000,-153.482111,0.00011453,2]
[421613084,1777960241000,-668.65185757,0.00011444,2]
[421613091,1777960241000,-258.20924308,0.00011556,2]
[421613068,1777960241000,-500.0,0.00011436,2]
[421613051,1777960241000,-500.0,0.00011435,2]
[421613063,1777960241000,-500.0,0.00011436,2]
[421613095,1777960241000,-795.0,0.000117,2]
[421613038,1777960241000,-500.0,0.00011435,2]
[421613039,1777960241000,-500.0,0.00011435,2]
[421613037,1777960241000,-500.0,0.00011435,2]
[421613035,1777960241000,-500.0,0.00011435,2]
[421613036,1777960241000,-410.74801666,0.00011435,2]
[421613045,1777960241000,-500.0,0.00011435,2]
[421613042,1777960241000,-500.0,0.00011435,2]
[421613040,1777960241000,-500.0,0.00011435,2]
[421613052,1777960241000,-500.0,0.00011435,2]
[421613044,1777960241000,-500.0,0.00011435,2]
[421613047,1777960241000,-500.0,0.00011435,2]
[421613041,1777960241000,-500.0,0.00011435,2]
[421613046,1777960241000,-500.0,0.00011435,2]
[421613061,1777960241000,-577.09915381,0.00011436,2]
[421613049,1777960241000,-500.0,0.00011435,2]
[421613048,1777960241000,-500.0,0.00011435,2]
[421613053,1777960241000,-500.0,0.00011435,2]
[421613055,1777960241000,-500.0,0.00011435,2]
[421613066,1777960241000,-500.0,0.00011436,2]
[421613065,1777960241000,-500.0,0.00011436,2]
[421613054,1777960241000,-610.12478544,0.00011435,2]
[421613067,1777960241000,-500.0,0.00011436,2]
[421613056,1777960241000,-500.0,0.00011435,2]
[421613058,1777960241000,-500.0,0.00011435,2]
[421613057,1777960241000,-500.0,0.00011435,2]
[421613059,1777960241000,-500.0,0.00011435,2]
[421613062,1777960241000,-363.42230398,0.00011436,2]
[421613060,1777960241000,-500.0,0.00011435,2]
[421613064,1777960241000,-500.0,0.00011436,2]
[421613043,1777960241000,-500.0,0.00011435,2]
[421613105,1777960241000,-8050.1532634,0.00011794,2]
[421613050,1777960241000,-500.0,0.00011435,2]
[421613104,1777960241000,-831.51979763,0.00011774,2]
[421613136,1777960241000,-151.0,0.000119,2]
[421613138,1777960241000,-151.0,0.000119,2]
[421613139,1777960241000,-151.0,0.000119,2]
[421613143,1777960241000,-168.46691,0.00011972,2]
[421613141,1777960241000,-62062.73664189,0.00011972,2]
[421613140,1777960241000,-151.0,0.000119,2]
[421613142,1777960241000,-168.46691,0.00011972,2]
[421613144,1777960241000,-168.46691,0.00011972,2]
[421613145,1777960241000,-168.46691,0.00011972,2]
[421613146,1777960241000,-500.0,0.00011972,2]
[421613149,1777960241000,-155.001,0.00011999,2]
[421613151,1777960241000,-264549.10774585,0.00012,2]
[421613154,1777960241000,-151.0,0.00012,2]
[421613158,1777960241000,-158.581955,0.00012,2]
[421613147,1777960241000,-277.34874377,0.00011978,2]
[421613152,1777960241000,-45772.53948986,0.00012,2]
[421613150,1777960241000,-156.721,0.00011999,2]
[421613167,1777960241000,-160.0,0.00012077,2]
[421613155,1777960241000,-151.0,0.00012,2]
[421613160,1777960241000,-168.46691,0.00012,2]
[421613157,1777960241000,-151.0,0.00012,2]
[421613156,1777960241000,-151.0,0.00012,2]
[421613161,1777960241000,-168.46691,0.00012,2]
[421613162,1777960241000,-168.46691,0.00012,2]
[421613159,1777960241000,-168.46691,0.00012,2]
[421613164,1777960241000,-168.46691,0.00012,2]
[421613163,1777960241000,-168.46691,0.00012,2]
[421613168,1777960241000,-151.0,0.000121,2]
[421613169,1777960241000,-151.0,0.000122,2]
[421613165,1777960241000,-168.46691,0.00012,2]
[421613153,1777960241000,-151.0,0.00012,2]
[421613137,1777960241000,-151.0,0.000119,2]
[421613166,1777960241000,-168.46691,0.00012,2]
[421613132,1777960241000,-159.0,0.000119,3]
[421613115,1777960241000,-168.46691,0.00011827,2]
[421613112,1777960241000,-151.0,0.00011827,2]
[421613121,1777960241000,-649.0,0.00011842,2]
[421613113,1777960241000,-168.46691,0.00011827,2]
[421613108,1777960241000,-452.52572,0.00011827,2]
[421613111,1777960241000,-151.0,0.00011827,2]
[421613110,1777960241000,-1407.5904435,0.00011827,2]
[421613120,1777960241000,-649.0,0.00011842,2]
[421613109,1777960241000,-69706.760799,0.00011827,2]
[421613107,1777960241000,-151.0,0.000118,2]
[421613102,1777960241000,-741.0,0.00011773,2]
[421613101,1777960241000,-442.0,0.00011773,2]
[421613103,1777960241000,-185.0,0.00011773,2]
[421613148,1777960241000,-557.5788265,0.00011978,2]
[421613119,1777960241000,-649.0,0.00011842,2]
[421613114,1777960241000,-168.46691,0.00011827,2]
[421613106,1777960241000,-151.0,0.000118,2]
[421613116,1777960241000,-168.46691,0.00011827,2]
[421613118,1777960241000,-649.0,0.00011842,2]
[421613129,1777960241000,-167.07741502,0.000119,2]
[421613130,1777960241000,-198.58697332,0.000119,2]
[421613127,1777960241000,-649.0,0.00011842,2]
[421613131,1777960241000,-160.0,0.000119,2]
[421613133,1777960241000,-158.09712499,0.000119,2]
[421613126,1777960241000,-649.0,0.00011842,2]
[421613122,1777960241000,-649.0,0.00011842,2]
[421613117,1777960241000,-339.46071234,0.00011842,2]
[421613124,1777960241000,-649.0,0.00011842,2]
[421613123,1777960241000,-649.0,0.00011842,2]
[421613128,1777960241000,-430.40198039,0.00011842,2]
[421613125,1777960241000,-649.0,0.00011842,2]
[421613135,1777960241000,-151.0,0.000119,2]
[421613134,1777960241000,-151.0,0.000119,2]
[421613212,1777960242000,-622.95,0.00012328,2]
[421613204,1777960242000,-798.59,0.00012328,2]
[421613203,1777960242000,-2147.38,0.00012328,2]
[421613211,1777960242000,-677.9,0.00012328,2]
[421613207,1777960242000,-738.0,0.00012328,2]
[421613206,1777960242000,-631.63,0.00012328,2]
[421613209,1777960242000,-449.87644302,0.00012328,2]
[421613208,1777960242000,-500.0,0.00012328,2]
[421613213,1777960242000,-764.59,0.00012328,2]
[421613223,1777960242000,-628.77,0.00012328,2]
[421613205,1777960242000,-500.0,0.00012328,2]
[421613201,1777960242000,-500.0,0.00012328,2]
[421613221,1777960242000,-1972.26,0.00012328,2]
[421613218,1777960242000,-500.0,0.00012328,2]
[421613214,1777960242000,-1000.0,0.00012328,2]
[421613215,1777960242000,-500.0,0.00012328,2]
[421613224,1777960242000,-500.0,0.00012328,2]
[421613220,1777960242000,-500.0,0.00012328,2]
[421613202,1777960242000,-500.0,0.00012328,2]
[421613219,1777960242000,-500.0,0.00012328,2]
[421613217,1777960242000,-500.0,0.00012328,2]
[421613222,1777960242000,-500.0,0.00012328,2]
[421613225,1777960242000,-500.0,0.00012328,2]
[421613228,1777960242000,-356.35952642,0.00012328,2]
[421613227,1777960242000,-263.93758656,0.00012328,2]
[421613233,1777960242000,-500.0,0.00012328,2]
[421613231,1777960242000,-1054.85,0.00012328,2]
[421613216,1777960242000,-500.0,0.00012328,2]
[421613210,1777960242000,-676.41,0.00012328,2]
[421613194,1777960242000,-500.0,0.00012328,2]
[421613200,1777960242000,-500.0,0.00012328,2]
[421613232,1777960242000,-1116.01,0.00012328,2]
[421613174,1777960242000,-151.0,0.000123,2]
[421613175,1777960242000,-194.0,0.000123,2]
[421613170,1777960242000,-151.0,0.000122,2]
[421613171,1777960242000,-668.64411042,0.00012228,2]
[421613172,1777960242000,-171.38,0.00012242,2]
[421613173,1777960242000,-176.59,0.00012283,2]
[421613176,1777960242000,-949.9459,0.00012328,2]
[421613180,1777960242000,-633.71,0.00012328,2]
[421613179,1777960242000,-500.0,0.00012328,2]
[421613178,1777960242000,-500.0,0.00012328,2]
[421613182,1777960242000,-500.0,0.00012328,2]
[421613177,1777960242000,-4749.7299,0.00012328,2]
[421613199,1777960242000,-500.0,0.00012328,2]
[421613181,1777960242000,-529.82,0.00012328,2]
[421613187,1777960242000,-500.0,0.00012328,2]
[421613183,1777960242000,-1651.55,0.00012328,2]
[421613186,1777960242000,-731.68,0.00012328,2]
[421613190,1777960242000,-269.94047253,0.00012328,2]
[421613188,1777960242000,-500.0,0.00012328,2]
[421613189,1777960242000,-500.0,0.00012328,2]
[421613191,1777960242000,-500.0,0.00012328,2]
[421613198,1777960242000,-572.88390812,0.00012328,2]
[421613192,1777960242000,-500.0,0.00012328,2]
[421613196,1777960242000,-500.0,0.00012328,2]
[421613195,1777960242000,-500.0,0.00012328,2]
[421613193,1777960242000,-500.0,0.00012328,2]
[421613197,1777960242000,-687.71,0.00012328,2]
[421613184,1777960242000,-500.0,0.00012328,2]
[421613185,1777960242000,-783.49,0.00012328,2]
[421613230,1777960242000,-500.0,0.00012328,2]
[421613235,1777960242000,-500.0,0.00012328,2]
[421613291,1777960242000,-500.0,0.00012328,2]
[421613292,1777960242000,-534.14,0.00012328,2]
[421613296,1777960242000,-500.0,0.00012328,2]
[421613298,1777960242000,-1472.41,0.00012328,2]
[421613282,1777960242000,-500.0,0.00012328,2]
[421613286,1777960242000,-500.0,0.00012328,2]
[421613295,1777960242000,-500.0,0.00012328,2]
[421613288,1777960242000,-1047.34,0.00012328,2]
[421613290,1777960242000,-500.0,0.00012328,2]
[421613300,1777960242000,-500.0,0.00012328,2]
[421613299,1777960242000,-500.0,0.00012328,2]
[421613311,1777960242000,-500.0,0.00012328,2]
[421613310,1777960242000,-500.0,0.00012328,2]
[421613294,1777960242000,-785.33,0.00012328,2]
[421613312,1777960242000,-500.0,0.00012328,2]
[421613304,1777960242000,-2936.12,0.00012328,2]
[421613308,1777960242000,-500.0,0.00012328,2]
[421613301,1777960242000,-500.0,0.00012328,2]
[421613306,1777960242000,-517.92,0.00012328,2]
[421613302,1777960242000,-1652.21,0.00012328,2]
[421613307,1777960242000,-500.0,0.00012328,2]
[421613305,1777960242000,-500.0,0.00012328,2]
[421613313,1777960242000,-500.0,0.00012328,2]
[421613315,1777960242000,-500.0,0.00012328,2]
[421613314,1777960242000,-738.07,0.00012328,2]
[421613316,1777960242000,-291.89873525,0.00012328,2]
[421613317,1777960242000,-892.34,0.00012328,2]
[421613229,1777960242000,-500.0,0.00012328,2]
[421613309,1777960242000,-2412.26,0.00012328,2]
[421613293,1777960242000,-500.0,0.00012328,2]
[421613303,1777960242000,-500.0,0.00012328,2]
[421613297,1777960242000,-1007.8,0.00012328,2]
[421613226,1777960242000,-904.14,0.00012328,2]
[421613284,1777960242000,-500.0,0.00012328,2]
[421613234,1777960242000,-575.63,0.00012328,2]
[421613236,1777960242000,-500.0,0.00012328,2]
[421613237,1777960242000,-500.0,0.00012328,2]
[421613245,1777960242000,-874.66,0.00012328,2]
[421613238,1777960242000,-500.0,0.00012328,2]
[421613246,1777960242000,-500.0,0.00012328,2]
[421613240,1777960242000,-547.09,0.00012328,2]
[421613244,1777960242000,-661.19,0.00012328,2]
[421613242,1777960242000,-151.0,0.00012328,2]
[421613243,1777960242000,-637.86,0.00012328,2]
[421613241,1777960242000,-151.0,0.00012328,2]
[421613252,1777960242000,-503.94,0.00012328,2]
[421613239,1777960242000,-500.0,0.00012328,2]
[421613255,1777960242000,-500.0,0.00012328,2]
[421613280,1777960242000,-532.65,0.00012328,2]
[421613278,1777960242000,-500.0,0.00012328,2]
[421613276,1777960242000,-500.0,0.00012328,2]
[421613273,1777960242000,-732.73,0.00012328,2]
[421613271,1777960242000,-500.0,0.00012328,2]
[421613269,1777960242000,-500.0,0.00012328,2]
[421613265,1777960242000,-1865.91,0.00012328,2]
[421613259,1777960242000,-500.0,0.00012328,2]
[421613267,1777960242000,-193.50150523,0.00012328,2]
[421613261,1777960242000,-652.9,0.00012328,2]
[421613248,1777960242000,-2407.56,0.00012328,2]
[421613251,1777960242000,-500.0,0.00012328,2]
[421613264,1777960242000,-500.0,0.00012328,2]
[421613363,1777960243000,-500.0,0.00012328,2]
[421613369,1777960243000,-500.0,0.00012328,2]
[421613362,1777960243000,-1856.81,0.00012328,2]
[421613360,1777960243000,-970.11,0.00012328,2]
[421613368,1777960243000,-500.0,0.00012328,2]
[421613364,1777960243000,-1298.74,0.00012328,2]
[421613367,1777960243000,-500.0,0.00012328,2]
[421613359,1777960243000,-614.05,0.00012328,2]
[421613365,1777960243000,-2620.12,0.00012328,2]
[421613358,1777960243000,-500.0,0.00012328,2]
[421613357,1777960243000,-1035.96,0.00012328,2]
[421613356,1777960243000,-627.35,0.00012328,2]
[421613361,1777960243000,-668.64,0.00012328,2]
[421613366,1777960243000,-627.05,0.00012328,2]
[421613370,1777960243000,-832.82,0.00012328,2]
[421613385,1777960243000,-852.92,0.00012328,2]
[421613373,1777960243000,-500.0,0.00012328,2]
[421613355,1777960243000,-1716.66,0.00012328,2]
[421613386,1777960243000,-500.0,0.00012328,2]
[421613388,1777960243000,-4355.6,0.00012328,2]
[421613379,1777960243000,-500.0,0.00012328,2]
[421613380,1777960243000,-500.0,0.00012328,2]
[421613383,1777960243000,-500.0,0.00012328,2]
[421613371,1777960243000,-4360.9,0.00012328,2]
[421613382,1777960243000,-761.3,0.00012328,2]
[421613384,1777960243000,-500.0,0.00012328,2]
[421613375,1777960243000,-695.88,0.00012328,2]
[421613374,1777960243000,-500.0,0.00012328,2]
[421613381,1777960243000,-500.0,0.00012328,2]
[421613376,1777960243000,-710.05,0.00012328,2]
[421613372,1777960243000,-500.0,0.00012328,2]
[421613377,1777960243000,-500.0,0.00012328,2]
[421613351,1777960243000,-722.66,0.00012328,2]
[421613325,1777960243000,-850.0,0.00012328,2]
[421613353,1777960243000,-500.0,0.00012328,2]
[421613390,1777960243000,-500.0,0.00012328,2]
[421613318,1777960243000,-168.46691,0.00012328,2]
[421613324,1777960243000,-1220.98,0.00012328,2]
[421613319,1777960243000,-500.0,0.00012328,2]
[421613321,1777960243000,-168.46691,0.00012328,2]
[421613323,1777960243000,-550.7,0.00012328,2]
[421613320,1777960243000,-707.89,0.00012328,2]
[421613322,1777960243000,-168.46691,0.00012328,2]
[421613327,1777960243000,-4566.83,0.00012328,2]
[421613337,1777960243000,-500.0,0.00012328,2]
[421613336,1777960243000,-538.55473316,0.00012328,2]
[421613328,1777960243000,-1022.05,0.00012328,2]
[421613341,1777960243000,-500.0,0.00012328,2]
[421613326,1777960243000,-168.46690926,0.00012328,2]
[421613339,1777960243000,-500.0,0.00012328,2]
[421613331,1777960243000,-500.0,0.00012328,2]
[421613329,1777960243000,-4342.71,0.00012328,2]
[421613354,1777960243000,-500.0,0.00012328,2]
[421613343,1777960243000,-1058.21,0.00012328,2]
[421613345,1777960243000,-2180.51,0.00012328,2]
[421613348,1777960243000,-500.0,0.00012328,2]
[421613350,1777960243000,-500.0,0.00012328,2]
[421613344,1777960243000,-640.6,0.00012328,2]
[421613352,1777960243000,-500.0,0.00012328,2]
[421613347,1777960243000,-1879.98,0.00012328,2]
[421613346,1777960243000,-500.0,0.00012328,2]
[421613342,1777960243000,-500.0,0.00012328,2]
[421613335,1777960243000,-500.0,0.00012328,2]
[421613330,1777960243000,-352.21641915,0.00012328,2]
[421613333,1777960243000,-500.0,0.00012328,2]
[421613340,1777960243000,-1273.64,0.00012328,2]
[421613349,1777960243000,-500.0,0.00012328,2]
[421613395,1777960243000,-500.0,0.00012328,2]
[421613422,1777960243000,-500.0,0.00012328,2]
[421613397,1777960243000,-1055.18,0.00012328,2]
[421613432,1777960243000,-500.0,0.00012328,2]
[421613434,1777960243000,-537.66,0.00012328,2]
[421613435,1777960243000,-500.0,0.00012328,2]
[421613445,1777960243000,-500.0,0.00012328,2]
[421613436,1777960243000,-3515.11,0.00012328,2]
[421613433,1777960243000,-500.0,0.00012328,2]
[421613437,1777960243000,-500.0,0.00012328,2]
[421613440,1777960243000,-500.0,0.00012328,2]
[421613446,1777960243000,-3630.1,0.00012328,2]
[421613443,1777960243000,-500.0,0.00012328,2]
[421613444,1777960243000,-1354.64,0.00012328,2]
[421613438,1777960243000,-10188.94,0.00012328,2]
[421613439,1777960243000,-500.0,0.00012328,2]
[421613441,1777960243000,-500.0,0.00012328,2]
[421613442,1777960243000,-706.17,0.00012328,2]
[421613448,1777960243000,-500.0,0.00012328,2]
[421613458,1777960243000,-500.0,0.00012328,2]
[421613389,1777960243000,-1508.28,0.00012328,2]
[421613462,1777960243000,-500.0,0.00012328,2]
[421613461,1777960243000,-4331.58,0.00012328,2]
[421613457,1777960243000,-500.0,0.00012328,2]
[421613456,1777960243000,-825.95,0.00012328,2]
[421613452,1777960243000,-500.0,0.00012328,2]
[421613426,1777960243000,-500.0,0.00012328,2]
[421613454,1777960243000,-527.72755351,0.00012328,2]
[421613451,1777960243000,-500.0,0.00012328,2]
[421613447,1777960243000,-3280.61,0.00012328,2]
[421613450,1777960243000,-949.9,0.00012328,2]
[421613449,1777960243000,-6274.95,0.00012328,2]
[421613460,1777960243000,-1200.27,0.00012328,2]
[421613459,1777960243000,-878.48,0.00012328,2]
[421613455,1777960243000,-500.0,0.00012328,2]
[421613427,1777960243000,-500.0,0.00012328,2]
[421613453,1777960243000,-3690.77,0.00012328,2]
[421613463,1777960243000,-500.0,0.00012328,2]
[421613393,1777960243000,-500.0,0.00012328,2]
[421613421,1777960243000,-500.0,0.00012328,2]
[421613391,1777960243000,-1080.1,0.00012328,2]
[421613394,1777960243000,-500.0,0.00012328,2]
[421613402,1777960243000,-500.0,0.00012328,2]
[421613392,1777960243000,-500.0,0.00012328,2]
[421613401,1777960243000,-500.0,0.00012328,2]
[421613404,1777960243000,-430.56814879,0.00012328,2]
[421613414,1777960243000,-872.36,0.00012328,2]
[421613416,1777960243000,-500.0,0.00012328,2]
[421613415,1777960243000,-4409.93,0.00012328,2]
[421613403,1777960243000,-745.15,0.00012328,2]
[421613407,1777960243000,-500.0,0.00012328,2]
[421613409,1777960243000,-1436.51,0.00012328,2]
[421613406,1777960243000,-500.0,0.00012328,2]
[421613399,1777960243000,-1782.57,0.00012328,2]
[421613412,1777960243000,-500.0,0.00012328,2]
[421613423,1777960243000,-500.0,0.00012328,2]
[421613410,1777960243000,-500.0,0.00012328,2]
[421613424,1777960243000,-500.0,0.00012328,2]
[421613420,1777960243000,-2211.99,0.00012328,2]
[421613428,1777960243000,-500.0,0.00012328,2]
[421613417,1777960243000,-500.0,0.00012328,2]
[421613419,1777960243000,-581.73,0.00012328,2]
[421613430,1777960243000,-7470.63,0.00012328,2]
[421613429,1777960243000,-11656.11,0.00012328,2]
[421613418,1777960243000,-500.0,0.00012328,2]